[Event "Live Chess"]
[Site "Chess.com"]
[Date "2024.06.02"]
[Round "-"]
[White "booktrunk"]
[Black "NAZRIZ1977"]
[Result "0-1"]
[WhiteElo "1479"]
[BlackElo "2152"]
[TimeControl "300"]
[EndTime "17:04:15 PDT"]
[Termination "NAZRIZ1977 won by resignation"]

1. d4 {[%clk 0:04:50.2]} 1... Nf6 {[%clk 0:04:58.9]} 2. Nc3 {[%clk 0:04:46.4]}
2... d5 {[%clk 0:04:57.7]} 3. g3 {[%clk 0:04:37.5]} 3... g6 {[%clk 0:04:56.4]}
4. Bg2 {[%clk 0:04:36.4]} 4... Bg7 {[%clk 0:04:55.8]} 5. a3 {[%clk 0:04:34]}
5... O-O {[%clk 0:04:54.9]} 6. Nf3 {[%clk 0:04:31.7]} 6... c5 {[%clk 0:04:53.6]}
7. Bf4 {[%clk 0:04:29.7]} 7... Nc6 {[%clk 0:04:52.2]} 8. dxc5 {[%clk 0:04:27.6]}
8... Nh5 {[%clk 0:04:44.2]} 9. Bd2 {[%clk 0:04:19]} 9... d4 {[%clk 0:04:39.7]}
10. Na4 {[%clk 0:04:12.5]} 10... e5 {[%clk 0:04:36.9]} 11. c3 {[%clk 0:04:04.9]}
11... d3 {[%clk 0:04:32.5]} 12. exd3 {[%clk 0:04:01.7]} 12... Qxd3 {[%clk
0:04:31]} 13. Qe2 {[%clk 0:04:00.5]} 13... Qc2 {[%clk 0:04:29.4]} 14. Qd1 {[%clk
0:03:57.3]} 14... Qxd1+ {[%clk 0:04:22.1]} 15. Rxd1 {[%clk 0:03:54.8]} 15... Be6
{[%clk 0:04:15.2]} 16. O-O {[%clk 0:03:52.9]} 16... Bb3 {[%clk 0:04:13.5]} 17.
Rc1 {[%clk 0:03:48.1]} 17... Bxa4 {[%clk 0:04:12]} 18. Rfe1 {[%clk 0:03:47.1]}
18... Rad8 {[%clk 0:04:07.5]} 19. Bg5 {[%clk 0:03:40.7]} 19... f6 {[%clk
0:04:02.2]} 20. Be3 {[%clk 0:03:38.2]} 20... Rfe8 {[%clk 0:03:55.6]} 21. Nd2
{[%clk 0:03:34.5]} 21... f5 {[%clk 0:03:51.2]} 22. f3 {[%clk 0:03:30.9]} 22...
f4 {[%clk 0:03:45.3]} 23. gxf4 {[%clk 0:03:25.6]} 23... exf4 {[%clk 0:03:44.6]}
24. Bd4 {[%clk 0:03:22.4]} 24... Rxe1+ {[%clk 0:03:38.2]} 25. Rxe1 {[%clk
0:03:19.5]} 25... Nxd4 {[%clk 0:03:37.3]} 26. cxd4 {[%clk 0:03:18.2]} 26...
Bxd4+ {[%clk 0:03:35.9]} 27. Kh1 {[%clk 0:03:17.6]} 27... Bxc5 {[%clk
0:03:33.7]} 28. Nc4 {[%clk 0:03:15.9]} 28... Bc6 {[%clk 0:03:27.8]} 29. Ne5
{[%clk 0:03:12.2]} 29... Nf6 {[%clk 0:03:19.1]} 30. Nxc6 {[%clk 0:03:06]} 30...
bxc6 {[%clk 0:03:17.9]} 31. Bh3 {[%clk 0:03:02.9]} 31... Be3 {[%clk 0:03:11.3]}
0-1

[Event "Live Chess"]
[Site "Chess.com"]
[Date "2024.06.02"]
[Round "-"]
[White "Queensandpawns"]
[Black "WelshTiger"]
[Result "0-1"]
[WhiteElo "2303"]
[BlackElo "2459"]
[TimeControl "300"]
[EndTime "17:04:20 PDT"]
[Termination "WelshTiger won by checkmate"]

1. e4 {[%clk 0:04:59]} 1... c5 {[%clk 0:04:56.9]} 2. d4 {[%clk 0:04:57.7]} 2...
cxd4 {[%clk 0:04:55.8]} 3. c3 {[%clk 0:04:57.6]} 3... Nf6 {[%clk 0:04:46.5]} 4.
Bc4 {[%clk 0:04:54.7]} 4... e6 {[%clk 0:04:32.6]} 5. Nf3 {[%clk 0:04:50.8]} 5...
d5 {[%clk 0:04:26.5]} 6. Bb5+ {[%clk 0:04:48.3]} 6... Nc6 {[%clk 0:04:25]} 7. e5
{[%clk 0:04:47.8]} 7... Nd7 {[%clk 0:04:23.1]} 8. cxd4 {[%clk 0:04:47.2]} 8...
Bb4+ {[%clk 0:04:19.5]} 9. Nc3 {[%clk 0:04:45.9]} 9... Qb6 {[%clk 0:04:13.4]}
10. Be2 {[%clk 0:04:39.6]} 10... f6 {[%clk 0:03:58.4]} 11. exf6 {[%clk
0:04:37.3]} 11... Nxf6 {[%clk 0:03:56.9]} 12. O-O {[%clk 0:04:37.2]} 12... O-O
{[%clk 0:03:55.2]} 13. Be3 {[%clk 0:04:36.3]} 13... Bd7 {[%clk 0:03:51.8]} 14.
Ne5 {[%clk 0:04:35.6]} 14... Bd6 {[%clk 0:03:43]} 15. Nxd7 {[%clk 0:04:31.3]}
15... Nxd7 {[%clk 0:03:41.4]} 16. Bg4 {[%clk 0:04:31.2]} 16... Rae8 {[%clk
0:03:38.9]} 17. Nxd5 {[%clk 0:04:28.8]} 17... exd5 {[%clk 0:03:37.8]} 18. Bxd7
{[%clk 0:04:28.7]} 18... Bxh2+ {[%clk 0:03:28.9]} 19. Kh1 {[%clk 0:04:12.1]}
19... Bd6 {[%clk 0:03:16.7]} 20. Bxe8 {[%clk 0:04:09.9]} 20... Rxe8 {[%clk
0:03:16.6]} 21. Qh5 {[%clk 0:04:08.5]} 21... Qd8 {[%clk 0:02:46.4]} 22. Bg5
{[%clk 0:04:07.4]} 22... Qd7 {[%clk 0:02:39.8]} 23. Rae1 {[%clk 0:04:06.6]}
23... Rf8 {[%clk 0:02:36.1]} 24. Bh4 {[%clk 0:03:55.5]} 24... Bb4 {[%clk
0:02:23.8]} 25. Re3 {[%clk 0:03:48.5]} 25... Nxd4 {[%clk 0:02:14.4]} 26. Rd3
{[%clk 0:03:41.1]} 26... Nf5 {[%clk 0:02:13.2]} 27. Rfd1 {[%clk 0:03:32.9]}
27... d4 {[%clk 0:02:08.4]} 28. Bg3 {[%clk 0:03:24.2]} 28... g6 {[%clk 0:02:07]}
29. Qh3 {[%clk 0:03:22.7]} 29... Qe6 {[%clk 0:01:51.9]} 30. a3 {[%clk
0:03:15.1]} 30... Be7 {[%clk 0:01:50.1]} 31. Bf4 {[%clk 0:03:08.4]} 31... Bf6
{[%clk 0:01:48.2]} 32. g4 {[%clk 0:03:02.5]} 32... Ng7 {[%clk 0:01:36.7]} 33. g5
{[%clk 0:02:56.2]} 33... Qe4+ {[%clk 0:01:22.8]} 34. Qf3 {[%clk 0:02:51.4]}
34... Qxf3+ {[%clk 0:01:21.8]} 35. Rxf3 {[%clk 0:02:51.3]} 35... Bxg5 {[%clk
0:01:21.2]} 36. Bxg5 {[%clk 0:02:32.7]} 36... Rxf3 {[%clk 0:01:19.5]} 37. Rxd4
{[%clk 0:02:32.6]} 37... Ne6 {[%clk 0:01:16]} 38. Rd5 {[%clk 0:02:27.6]} 38...
Nxg5 {[%clk 0:01:13]} 39. Rxg5 {[%clk 0:02:27.5]} 39... Rxf2 {[%clk 0:01:12]}
40. Rb5 {[%clk 0:02:26.7]} 40... b6 {[%clk 0:01:10.9]} 41. Kg1 {[%clk
0:02:26.4]} 41... Rc2 {[%clk 0:01:09]} 42. Rb3 {[%clk 0:02:25.8]} 42... Rc5
{[%clk 0:01:07.4]} 43. Kh1 {[%clk 0:02:25.7]} 43... h5 {[%clk 0:01:05.5]} 44.
Kg2 {[%clk 0:02:25.6]} 44... Kf7 {[%clk 0:01:03.8]} 45. Kh3 {[%clk 0:02:25.5]}
45... g5 {[%clk 0:01:02.9]} 46. Kg3 {[%clk 0:02:25]} 46... Kg6 {[%clk
0:01:02.1]} 47. Re3 {[%clk 0:02:24.8]} 47... Kf5 {[%clk 0:01:00.4]} 48. Re8
{[%clk 0:02:24.1]} 48... Re5 {[%clk 0:00:56.2]} 49. Rf8+ {[%clk 0:02:23.2]}
49... Ke4 {[%clk 0:00:55.5]} 50. Rh8 {[%clk 0:02:23.1]} 50... h4+ {[%clk
0:00:50.8]} 51. Kg4 {[%clk 0:02:22.3]} 51... Kd3 {[%clk 0:00:49.6]} 52. Rh7
{[%clk 0:02:19.7]} 52... a5 {[%clk 0:00:47.9]} 53. Rb7 {[%clk 0:02:17.8]} 53...
b5 {[%clk 0:00:47.1]} 54. Ra7 {[%clk 0:02:16.8]} 54... a4 {[%clk 0:00:46.4]} 55.
Rc7 {[%clk 0:02:14.4]} 55... Kd4 {[%clk 0:00:43]} 56. Rc3 {[%clk 0:02:11.4]}
56... Rc5 {[%clk 0:00:41.4]} 57. Rf3 {[%clk 0:02:01.5]} 57... Kc4 {[%clk
0:00:38.6]} 58. Rc3+ {[%clk 0:01:58.1]} 58... Kd4 {[%clk 0:00:37.7]} 59. Rf3
{[%clk 0:01:58]} 59... Rc2 {[%clk 0:00:36.8]} 60. Kxg5 {[%clk 0:01:55.8]} 60...
Rxb2 {[%clk 0:00:35.5]} 61. Kxh4 {[%clk 0:01:55.5]} 61... Rb3 {[%clk 0:00:34.9]}
62. Rf4+ {[%clk 0:01:54.5]} 62... Kc3 {[%clk 0:00:33.9]} 63. Rf5 {[%clk
0:01:54.2]} 63... Kb2 {[%clk 0:00:32.4]} 64. Kg4 {[%clk 0:01:51.8]} 64... Kxa3
{[%clk 0:00:31.6]} 65. Kf4 {[%clk 0:01:51.7]} 65... b4 {[%clk 0:00:30.1]} 66.
Ra5 {[%clk 0:01:50.8]} 66... Rd3 {[%clk 0:00:28.3]} 67. Ke4 {[%clk 0:01:50.5]}
67... Rd8 {[%clk 0:00:27.4]} 68. Ke3 {[%clk 0:01:49]} 68... b3 {[%clk
0:00:26.8]} 69. Rb5 {[%clk 0:01:47.9]} 69... b2 {[%clk 0:00:26.3]} 70. Ke2
{[%clk 0:01:46.6]} 70... Ka2 {[%clk 0:00:25.7]} 71. Rb4 {[%clk 0:01:46.2]} 71...
a3 {[%clk 0:00:24.7]} 72. Ra4 {[%clk 0:01:45.2]} 72... b1=Q {[%clk 0:00:23.6]}
73. Rd4 {[%clk 0:01:44.4]} 73... Qc2+ {[%clk 0:00:22.5]} 74. Rd2 {[%clk
0:01:44.3]} 74... Qxd2+ {[%clk 0:00:20.7]} 75. Kf1 {[%clk 0:01:44.2]} 75... Rf8+
{[%clk 0:00:19.3]} 76. Kg1 {[%clk 0:01:42.9]} 76... Qf2+ {[%clk 0:00:18.5]} 77.
Kh1 {[%clk 0:01:42.8]} 77... Rh8# {[%clk 0:00:17.6]} 0-1

[Event "Live Chess"]
[Site "Chess.com"]
[Date "2024.06.02"]
[Round "-"]
[White "toog"]
[Black "TheSmoulderingMaster"]
[Result "1-0"]
[WhiteElo "2596"]
[BlackElo "1762"]
[TimeControl "300"]
[EndTime "17:04:28 PDT"]
[Termination "toog won by resignation"]

1. e4 {[%clk 0:04:57.3]} 1... c5 {[%clk 0:04:58.8]} 2. Nc3 {[%clk 0:04:56]} 2...
Nc6 {[%clk 0:04:57.3]} 3. Bb5 {[%clk 0:04:54.8]} 3... Nd4 {[%clk 0:04:54.3]} 4.
Bc4 {[%clk 0:04:53.5]} 4... e6 {[%clk 0:04:52.3]} 5. Nf3 {[%clk 0:04:52]} 5...
g6 {[%clk 0:04:49.5]} 6. Nxd4 {[%clk 0:04:50.8]} 6... cxd4 {[%clk 0:04:48]} 7.
Ne2 {[%clk 0:04:49.1]} 7... Bg7 {[%clk 0:04:43.7]} 8. d3 {[%clk 0:04:48]} 8...
Ne7 {[%clk 0:04:42.4]} 9. O-O {[%clk 0:04:46.4]} 9... O-O {[%clk 0:04:41.4]} 10.
Bb3 {[%clk 0:04:45.1]} 10... a6 {[%clk 0:04:40.6]} 11. Ng3 {[%clk 0:04:44.2]}
11... b5 {[%clk 0:04:39.3]} 12. Bg5 {[%clk 0:04:40.8]} 12... Bb7 {[%clk
0:04:37.4]} 13. Qd2 {[%clk 0:04:39.6]} 13... Re8 {[%clk 0:04:36.3]} 14. Bh6
{[%clk 0:04:38.3]} 14... Bh8 {[%clk 0:04:33.9]} 15. f4 {[%clk 0:04:33.7]} 15...
d5 {[%clk 0:04:32.7]} 16. f5 {[%clk 0:04:31.1]} 16... dxe4 {[%clk 0:04:26.8]}
17. fxe6 {[%clk 0:04:28.5]} 17... f5 {[%clk 0:04:20.2]} 18. dxe4 {[%clk
0:04:25.2]} 18... fxe4 {[%clk 0:04:15.3]} 19. Qf4 {[%clk 0:04:20.8]} 19... Nf5
{[%clk 0:04:10.8]} 20. Nxf5 {[%clk 0:04:18.8]} 20... gxf5 {[%clk 0:04:09.3]} 21.
Qg3+ {[%clk 0:04:16.4]} 1-0

[Event "Live Chess"]
[Site "Chess.com"]
[Date "2024.06.02"]
[Round "-"]
[White "CheckThis4"]
[Black "Frankie_Badacsonyi"]
[Result "1-0"]
[WhiteElo "2696"]
[BlackElo "2421"]
[TimeControl "300"]
[EndTime "17:04:38 PDT"]
[Termination "CheckThis4 won by resignation"]

1. e4 {[%clk 0:04:56.6]} 1... c6 {[%clk 0:04:58.4]} 2. c4 {[%clk 0:04:47.3]}
2... d5 {[%clk 0:04:58.3]} 3. cxd5 {[%clk 0:04:46.1]} 3... cxd5 {[%clk
0:04:57.6]} 4. exd5 {[%clk 0:04:46]} 4... Nf6 {[%clk 0:04:56.6]} 5. Nc3 {[%clk
0:04:45.2]} 5... Nxd5 {[%clk 0:04:51.7]} 6. Nf3 {[%clk 0:04:44.1]} 6... e6
{[%clk 0:04:47.2]} 7. d4 {[%clk 0:04:42.4]} 7... Bb4 {[%clk 0:04:43.2]} 8. Bd2
{[%clk 0:04:40.2]} 8... Nc6 {[%clk 0:04:41.1]} 9. Bd3 {[%clk 0:04:38.2]} 9...
Be7 {[%clk 0:04:38.9]} 10. O-O {[%clk 0:04:36.5]} 10... O-O {[%clk 0:04:36.8]}
11. Re1 {[%clk 0:04:34.8]} 11... Bf6 {[%clk 0:04:28.8]} 12. Nxd5 {[%clk
0:03:46.7]} 12... Qxd5 {[%clk 0:04:27.1]} 13. Be4 {[%clk 0:03:45.1]} 13... Qd8
{[%clk 0:04:23.2]} 14. Bxc6 {[%clk 0:03:41.1]} 14... bxc6 {[%clk 0:04:23.1]} 15.
Bb4 {[%clk 0:03:34.8]} 15... Re8 {[%clk 0:04:20.6]} 16. Rc1 {[%clk 0:03:33.7]}
16... Rb8 {[%clk 0:03:45]} 17. Ba3 {[%clk 0:03:31.9]} 17... Qd5 {[%clk
0:03:33.8]} 18. b3 {[%clk 0:03:23.2]} 18... Qa5 {[%clk 0:03:32.2]} 19. Bd6
{[%clk 0:03:14.9]} 19... Ra8 {[%clk 0:03:25.3]} 20. Qc2 {[%clk 0:03:00.8]} 20...
Ba6 {[%clk 0:03:00.7]} 21. Ne5 {[%clk 0:02:56.3]} 21... Bxe5 {[%clk 0:02:50.3]}
22. dxe5 {[%clk 0:02:41.8]} 22... Rac8 {[%clk 0:02:48]} 23. Re4 {[%clk
0:02:34.2]} 23... c5 {[%clk 0:02:41.9]} 24. Ra4 {[%clk 0:01:54.9]} 24... Qb5
{[%clk 0:02:32.3]} 25. h4 {[%clk 0:01:46.2]} 25... h6 {[%clk 0:02:06.6]} 26. Qd2
{[%clk 0:01:37.3]} 26... c4 {[%clk 0:01:35.3]} 27. Rcxc4 {[%clk 0:01:32.1]}
27... Rxc4 {[%clk 0:01:34.3]} 28. Rxc4 {[%clk 0:01:31.6]} 28... Rc8 {[%clk
0:01:11.5]} 29. Rxc8+ {[%clk 0:01:22.5]} 29... Bxc8 {[%clk 0:01:11.4]} 30. Qd4
{[%clk 0:01:13.9]} 30... a6 {[%clk 0:01:04.6]} 31. h5 {[%clk 0:01:05.6]} 31...
Bb7 {[%clk 0:01:01.4]} 32. f3 {[%clk 0:01:03.8]} 32... Qd5 {[%clk 0:00:56.1]}
33. Qxd5 {[%clk 0:00:59.5]} 33... Bxd5 {[%clk 0:00:56]} 34. Kf2 {[%clk
0:00:58.7]} 34... f6 {[%clk 0:00:50.3]} 35. Ke3 {[%clk 0:00:56.6]} 35... Kf7
{[%clk 0:00:28.6]} 36. Kd4 {[%clk 0:00:55.4]} 36... fxe5+ {[%clk 0:00:25.4]} 37.
Bxe5 {[%clk 0:00:54.1]} 37... g5 {[%clk 0:00:24.1]} 38. hxg6+ {[%clk 0:00:42.8]}
38... Kxg6 {[%clk 0:00:24]} 39. Kc5 {[%clk 0:00:42.2]} 39... Kf5 {[%clk
0:00:20.8]} 40. Bg3 {[%clk 0:00:32.5]} 40... Bb7 {[%clk 0:00:15.7]} 41. Kb6
{[%clk 0:00:31.3]} 1-0

[Event "Live Chess"]
[Site "Chess.com"]
[Date "2024.06.02"]
[Round "-"]
[White "RockTroll"]
[Black "Silverback7829"]
[Result "1-0"]
[WhiteElo "2197"]
[BlackElo "901"]
[TimeControl "300"]
[EndTime "17:04:52 PDT"]
[Termination "RockTroll won by checkmate"]

1. e4 {[%clk 0:04:57.9]} 1... e5 {[%clk 0:04:58]} 2. Nf3 {[%clk 0:04:57.4]} 2...
Nc6 {[%clk 0:04:56.2]} 3. Bb5 {[%clk 0:04:56.2]} 3... d6 {[%clk 0:04:51.3]} 4.
d4 {[%clk 0:04:53.9]} 4... a6 {[%clk 0:04:48.5]} 5. Bxc6+ {[%clk 0:04:51.9]}
5... bxc6 {[%clk 0:04:45.9]} 6. dxe5 {[%clk 0:04:51.8]} 6... dxe5 {[%clk
0:04:43.5]} 7. Qxd8+ {[%clk 0:04:51.7]} 7... Kxd8 {[%clk 0:04:41]} 8. Nxe5
{[%clk 0:04:51.6]} 8... Bd6 {[%clk 0:04:36.3]} 9. Nxf7+ {[%clk 0:04:50.4]} 9...
Ke8 {[%clk 0:04:19.4]} 10. Nxh8 {[%clk 0:04:50.3]} 10... Bb4+ {[%clk 0:04:16.1]}
11. c3 {[%clk 0:04:48.2]} 11... Ba5 {[%clk 0:04:12.9]} 12. O-O {[%clk
0:04:45.2]} 12... Be6 {[%clk 0:04:04.3]} 13. Nd2 {[%clk 0:04:44.1]} 13... Kd7
{[%clk 0:04:01.5]} 14. Nb3 {[%clk 0:04:42.5]} 14... Nf6 {[%clk 0:03:58.5]} 15.
Nxa5 {[%clk 0:04:40.9]} 15... Rxh8 {[%clk 0:03:55]} 16. Rd1+ {[%clk 0:04:38.9]}
16... Kc8 {[%clk 0:03:48.7]} 17. f3 {[%clk 0:04:38.5]} 17... Nd7 {[%clk
0:03:35.3]} 18. Be3 {[%clk 0:04:37]} 18... Nf8 {[%clk 0:03:28.4]} 19. Nxc6
{[%clk 0:04:35.1]} 19... h5 {[%clk 0:03:19.9]} 20. Ne7+ {[%clk 0:04:33.7]} 20...
Kb8 {[%clk 0:03:10.2]} 21. Rd8+ {[%clk 0:04:31.2]} 21... Kb7 {[%clk 0:03:03.3]}
22. Bc5 {[%clk 0:04:30.3]} 22... Bc4 {[%clk 0:02:42.7]} 23. Rad1 {[%clk
0:04:27]} 23... Rh6 {[%clk 0:02:27.3]} 24. Rxf8 {[%clk 0:04:24.6]} 24... Rc6
{[%clk 0:02:21.9]} 25. Be3 {[%clk 0:04:21.9]} 25... Rb6 {[%clk 0:02:16.8]} 26.
b3 {[%clk 0:04:20.3]} 26... Rb5 {[%clk 0:02:04.2]} 27. bxc4 {[%clk 0:04:17.9]}
27... Rb2 {[%clk 0:01:59.3]} 28. h3 {[%clk 0:04:12.1]} 28... Rxa2 {[%clk
0:01:55.1]} 29. Rb1+ {[%clk 0:04:11.4]} 29... Rb2 {[%clk 0:01:20.8]} 30. Rxb2#
{[%clk 0:04:09.8]} 1-0

[Event "Live Chess"]
[Site "Chess.com"]
[Date "2024.06.02"]
[Round "-"]
[White "StoreySniper"]
[Black "Tushinskiy"]
[Result "0-1"]
[WhiteElo "2530"]
[BlackElo "2245"]
[TimeControl "300"]
[EndTime "17:05:01 PDT"]
[Termination "Tushinskiy won by resignation"]

1. e4 {[%clk 0:04:58]} 1... e5 {[%clk 0:04:56.6]} 2. Nf3 {[%clk 0:04:56.7]} 2...
d6 {[%clk 0:04:56.5]} 3. d4 {[%clk 0:04:54.8]} 3... Bg4 {[%clk 0:04:56.4]} 4.
Nc3 {[%clk 0:04:49.7]} 4... Nd7 {[%clk 0:04:52]} 5. Bc4 {[%clk 0:04:45.3]} 5...
Ngf6 {[%clk 0:04:48.5]} 6. Be3 {[%clk 0:04:33.7]} 6... c6 {[%clk 0:04:46]} 7. h3
{[%clk 0:04:28.9]} 7... Bh5 {[%clk 0:04:43.8]} 8. dxe5 {[%clk 0:04:21.8]} 8...
dxe5 {[%clk 0:04:41.8]} 9. Qe2 {[%clk 0:04:05.8]} 9... Bb4 {[%clk 0:04:37.7]}
10. Bd3 {[%clk 0:03:56.2]} 10... Nc5 {[%clk 0:04:30.6]} 11. Bxc5 {[%clk
0:03:47.8]} 11... Bxc5 {[%clk 0:04:28]} 12. g4 {[%clk 0:03:46.3]} 12... Bg6
{[%clk 0:04:26.5]} 13. Nxe5 {[%clk 0:03:44.6]} 13... Bd4 {[%clk 0:04:24.9]} 14.
Nxg6 {[%clk 0:03:37.8]} 14... hxg6 {[%clk 0:04:24.8]} 15. O-O-O {[%clk
0:03:31.1]} 15... Bxc3 {[%clk 0:04:20.4]} 16. bxc3 {[%clk 0:03:28.9]} 16... Qa5
{[%clk 0:04:19.9]} 17. Kb2 {[%clk 0:03:02.9]} 17... O-O-O {[%clk 0:04:05.1]} 18.
Bc4 {[%clk 0:02:56.6]} 18... Nd7 {[%clk 0:03:44.3]} 19. Bxf7 {[%clk 0:02:44.1]}
19... Nc5 {[%clk 0:03:41.8]} 20. Bb3 {[%clk 0:02:39.5]} 20... Rhf8 {[%clk
0:03:32.3]} 21. f3 {[%clk 0:02:37.1]} 21... Qb6 {[%clk 0:03:27.6]} 22. Qc4
{[%clk 0:02:27.1]} 22... a5 {[%clk 0:03:25.5]} 23. Ka1 {[%clk 0:02:20.6]} 23...
Kb8 {[%clk 0:03:18.2]} 24. a4 {[%clk 0:02:07.2]} 24... Rxd1+ {[%clk 0:03:13.3]}
25. Rxd1 {[%clk 0:02:04.9]} 25... Rxf3 {[%clk 0:03:13]} 26. Ka2 {[%clk
0:01:52.2]} 26... Rxh3 {[%clk 0:03:02.5]} 27. Qg8+ {[%clk 0:01:49.2]} 27... Ka7
{[%clk 0:03:01.7]} 28. Rd8 {[%clk 0:01:48.2]} 28... Qc7 {[%clk 0:03:00.7]} 29.
Ra8+ {[%clk 0:01:44.8]} 29... Kb6 {[%clk 0:02:59]} 30. Qc4 {[%clk 0:01:30.3]}
30... Qe5 {[%clk 0:02:53.7]} 31. Kb2 {[%clk 0:01:22.4]} 31... Nxe4 {[%clk
0:02:42]} 32. Qg8 {[%clk 0:01:04]} 32... Qxc3+ {[%clk 0:01:46.7]} 33. Ka2 {[%clk
0:01:00.7]} 33... Rh1 {[%clk 0:01:36]} 34. Qd8+ {[%clk 0:00:54.5]} 34... Kc5
{[%clk 0:01:33.4]} 35. Rxa5+ {[%clk 0:00:50.9]} 35... b5 {[%clk 0:01:32.1]} 36.
Rxb5+ {[%clk 0:00:23.4]} 36... cxb5 {[%clk 0:01:29.2]} 37. Qd5+ {[%clk
0:00:22.8]} 37... Kb6 {[%clk 0:01:23.3]} 38. Qxb5+ {[%clk 0:00:21.9]} 38... Kc7
{[%clk 0:01:22.4]} 39. Qa5+ {[%clk 0:00:18.8]} 39... Qxa5 {[%clk 0:01:20.7]} 0-1

[Event "Live Chess"]
[Site "Chess.com"]
[Date "2024.06.02"]
[Round "-"]
[White "alicechristina"]
[Black "stevochess11"]
[Result "1-0"]
[WhiteElo "1916"]
[BlackElo "1692"]
[TimeControl "300"]
[EndTime "17:05:21 PDT"]
[Termination "alicechristina won by checkmate"]

1. c4 {[%clk 0:04:55.8]} 1... c5 {[%clk 0:04:57.5]} 2. Nc3 {[%clk 0:04:53]} 2...
Nf6 {[%clk 0:04:56.3]} 3. g3 {[%clk 0:04:50.9]} 3... e6 {[%clk 0:04:53.5]} 4.
Bg2 {[%clk 0:04:49.6]} 4... Be7 {[%clk 0:04:53.4]} 5. e4 {[%clk 0:04:47.8]} 5...
O-O {[%clk 0:04:53.3]} 6. Nge2 {[%clk 0:04:46.4]} 6... d6 {[%clk 0:04:52.3]} 7.
O-O {[%clk 0:04:46]} 7... Nbd7 {[%clk 0:04:49.8]} 8. d4 {[%clk 0:04:45.1]} 8...
cxd4 {[%clk 0:04:48.6]} 9. Nxd4 {[%clk 0:04:44.3]} 9... a6 {[%clk 0:04:45.8]}
10. a4 {[%clk 0:04:42.6]} 10... Nc5 {[%clk 0:04:41.2]} 11. f4 {[%clk 0:04:39.8]}
11... Bd7 {[%clk 0:04:36.1]} 12. b4 {[%clk 0:04:37.3]} 12... e5 {[%clk
0:04:16.5]} 13. fxe5 {[%clk 0:04:33.1]} 13... dxe5 {[%clk 0:04:15.4]} 14. Nf5
{[%clk 0:04:31]} 14... Ne6 {[%clk 0:04:11.9]} 15. Nd5 {[%clk 0:04:25.1]} 15...
Nxd5 {[%clk 0:04:06.6]} 16. cxd5 {[%clk 0:04:24.3]} 16... Nd4 {[%clk 0:03:57.4]}
17. Nxd4 {[%clk 0:04:23.4]} 17... Bxb4 {[%clk 0:03:49.4]} 18. Nf5 {[%clk
0:04:17.4]} 18... Bc3 {[%clk 0:03:17.1]} 19. Rb1 {[%clk 0:04:08.1]} 19... Bxf5
{[%clk 0:03:14.9]} 20. Rxf5 {[%clk 0:04:03.2]} 20... Bd4+ {[%clk 0:03:03.9]} 21.
Kh1 {[%clk 0:04:02.3]} 21... b5 {[%clk 0:02:42.6]} 22. axb5 {[%clk 0:03:58.9]}
22... axb5 {[%clk 0:02:35.4]} 23. Qg4 {[%clk 0:03:57.6]} 23... Rc8 {[%clk
0:02:13.1]} 24. Bh6 {[%clk 0:03:54.8]} 24... g6 {[%clk 0:02:10.6]} 25. Bxf8
{[%clk 0:03:53.7]} 25... Qxf8 {[%clk 0:02:09.7]} 26. Rf6 {[%clk 0:03:46.7]}
26... Rc2 {[%clk 0:02:03.4]} 27. Rbf1 {[%clk 0:03:41.7]} 27... b4 {[%clk
0:01:58.2]} 28. d6 {[%clk 0:03:29.9]} 28... b3 {[%clk 0:01:54.5]} 29. d7 {[%clk
0:03:16.9]} 29... Bb6 {[%clk 0:01:52.3]} 30. Qf3 {[%clk 0:03:09.6]} 30... b2
{[%clk 0:01:32.7]} 31. Rxf7 {[%clk 0:03:08.2]} 31... Qxf7 {[%clk 0:01:20.3]} 32.
Qxf7+ {[%clk 0:03:06.5]} 32... Kh8 {[%clk 0:01:16.2]} 33. Qf8# {[%clk 0:03:06]}
1-0

[Event "Live Chess"]
[Site "Chess.com"]
[Date "2024.06.02"]
[Round "-"]
[White "AlexanderMatlak"]
[Black "educatedlad"]
[Result "1-0"]
[WhiteElo "2403"]
[BlackElo "1741"]
[TimeControl "300"]
[EndTime "17:05:34 PDT"]
[Termination "AlexanderMatlak won by resignation"]

1. c4 {[%clk 0:04:56.7]} 1... c5 {[%clk 0:04:58.1]} 2. Nf3 {[%clk 0:04:55.8]}
2... Nf6 {[%clk 0:04:56.4]} 3. Nc3 {[%clk 0:04:55.2]} 3... Nc6 {[%clk
0:04:53.4]} 4. g3 {[%clk 0:04:54.6]} 4... g6 {[%clk 0:04:52.1]} 5. Bg2 {[%clk
0:04:54]} 5... Bg7 {[%clk 0:04:51.5]} 6. O-O {[%clk 0:04:53.2]} 6... O-O {[%clk
0:04:50.6]} 7. d4 {[%clk 0:04:52.5]} 7... cxd4 {[%clk 0:04:49.2]} 8. Nxd4 {[%clk
0:04:51.7]} 8... Nxd4 {[%clk 0:04:27.7]} 9. Qxd4 {[%clk 0:04:51.5]} 9... Qc7
{[%clk 0:04:25.3]} 10. b3 {[%clk 0:04:45.6]} 10... e6 {[%clk 0:04:21.2]} 11. Bb2
{[%clk 0:04:39.6]} 11... d5 {[%clk 0:04:17.9]} 12. cxd5 {[%clk 0:04:34.6]} 12...
exd5 {[%clk 0:04:14.5]} 13. Nxd5 {[%clk 0:04:29.8]} 13... Qd6 {[%clk 0:04:12.9]}
14. Nxf6+ {[%clk 0:04:25.6]} 1-0

[Event "Live Chess"]
[Site "Chess.com"]
[Date "2024.06.02"]
[Round "-"]
[White "NAZRIZ1977"]
[Black "Queensandpawns"]
[Result "0-1"]
[WhiteElo "2147"]
[BlackElo "2308"]
[TimeControl "300"]
[EndTime "17:05:41 PDT"]
[Termination "Queensandpawns won by resignation"]

1. e4 {[%clk 0:04:55.4]} 1... e5 {[%clk 0:04:59.9]} 2. Nf3 {[%clk 0:04:54.1]}
2... Nf6 {[%clk 0:04:59.8]} 3. Nxe5 {[%clk 0:04:52]} 3... Nc6 {[%clk 0:04:59.7]}
4. Nxc6 {[%clk 0:04:50.6]} 4... dxc6 {[%clk 0:04:59.6]} 5. e5 {[%clk 0:04:48.9]}
5... Ne4 {[%clk 0:04:58.8]} 6. d3 {[%clk 0:04:46.1]} 6... Bc5 {[%clk 0:04:34.6]}
7. dxe4 {[%clk 0:04:39.1]} 7... Bxf2+ {[%clk 0:04:33.5]} 8. Ke2 {[%clk
0:04:38.5]} 8... Bg4+ {[%clk 0:04:32.5]} 9. Kxf2 {[%clk 0:04:31.6]} 9... Qxd1
{[%clk 0:04:32.4]} 10. Bd3 {[%clk 0:04:25.7]} 10... Qxh1 {[%clk 0:04:29.9]} 11.
Bf4 {[%clk 0:04:22.4]} 0-1

[Event "Live Chess"]
[Site "Chess.com"]
[Date "2024.06.02"]
[Round "-"]
[White "wadsy27"]
[Black "Duke_of_Bebington"]
[Result "1-0"]
[WhiteElo "2581"]
[BlackElo "1622"]
[TimeControl "300"]
[EndTime "17:06:13 PDT"]
[Termination "wadsy27 won by resignation"]

1. c4 {[%clk 0:04:58.2]} 1... c6 {[%clk 0:04:57.1]} 2. g3 {[%clk 0:04:57.6]}
2... d5 {[%clk 0:04:55.5]} 3. Nf3 {[%clk 0:04:57.3]} 3... Nf6 {[%clk 0:04:48.1]}
4. Bg2 {[%clk 0:04:56.6]} 4... dxc4 {[%clk 0:04:47.2]} 5. O-O {[%clk 0:04:55.3]}
5... g6 {[%clk 0:04:43.1]} 6. Na3 {[%clk 0:04:53.7]} 6... b5 {[%clk 0:04:40.7]}
7. b3 {[%clk 0:04:51.4]} 7... cxb3 {[%clk 0:04:37.3]} 8. Qxb3 {[%clk 0:04:51.3]}
8... Be6 {[%clk 0:04:32.7]} 9. Qc2 {[%clk 0:04:36.7]} 9... Bg7 {[%clk
0:04:31.2]} 10. Ng5 {[%clk 0:04:18]} 10... Bf5 {[%clk 0:04:23]} 11. Qb3 {[%clk
0:04:11.8]} 11... Nd5 {[%clk 0:04:18.7]} 12. Bb2 {[%clk 0:03:51.9]} 12... Bxb2
{[%clk 0:04:14.7]} 13. Qxb2 {[%clk 0:03:51.8]} 13... e6 {[%clk 0:04:02.7]} 14.
Qxh8+ {[%clk 0:03:48.6]} 14... Ke7 {[%clk 0:04:01.6]} 15. Qxd8+ {[%clk
0:03:46.7]} 15... Kxd8 {[%clk 0:04:01.5]} 1-0